fUST/lending_fUST_20250713
["ID","MTS","AMOUNT","RATE_DAILY","PERIOD"]
[371572134,1752358267081,-494.63,0.00022191,2]
[371572135,1752358267092,-556.7,0.00022191,2]
[371572136,1752358267102,-2095.41,0.00022191,2]
[371572137,1752358267111,-746.48,0.00022191,2]
[371572138,1752358267120,-1084.72,0.00022191,2]
[371572139,1752358267130,-1452.21,0.00022191,2]
[371572140,1752358267138,-4048.32,0.00022191,2]
[371572141,1752358267147,-888.82,0.00022191,2]
[371572142,1752358267155,-538.28,0.00022191,2]
[371572143,1752358267164,-460.0,0.00022191,2]
[371572144,1752358267173,-405.44,0.00022191,2]
[371572145,1752358267183,-1107.74,0.00022191,2]
[371572146,1752358267192,-467.32,0.00022191,2]
[371572147,1752358267202,-577.85,0.00022191,2]
[371572148,1752358267211,-757.63,0.00022191,2]
[371572149,1752358267220,-460.0,0.00022191,2]
[371572150,1752358267230,-495.29,0.00022191,2]
[371572151,1752358267239,-595.14,0.00022191,2]
[371572152,1752358267247,-702.1,0.00022191,2]
[371572153,1752358267255,-230.0,0.00022191,2]
[371572154,1752358267265,-804.39,0.00022191,2]
[371572155,1752358267275,-772.88,0.00022191,2]
[371572156,1752358267284,-173.11,0.00022363,2]
[371572157,1752358267294,-517.5,0.00022464,2]
[371572158,1752358267303,-640.66,0.00022464,2]
[371572159,1752358267312,-642.54,0.00022464,2]
[371572160,1752358267322,-691.7,0.00022464,2]
[371572161,1752358267332,-706.14,0.00022464,2]
[371572162,1752358267341,-864.17,0.00022464,2]
[371572163,1752358267350,-489.15,0.00022464,2]
[371572164,1752358267359,-505.82,0.00022465,2]
[371572165,1752358267370,-479.43,0.00022465,2]
[371572166,1752358267380,-761.68,0.00022465,2]
[371572167,1752358267390,-505.94,0.00022465,2]
[371572168,1752358267400,-841.86,0.00022465,2]
[371572169,1752358267410,-780.97,0.00022465,2]
[371572170,1752358267420,-766.15,0.00022465,2]
[371572171,1752358267430,-489.39,0.00022465,2]
[371572172,1752358267440,-785.41,0.00022465,2]
[371572173,1752358267449,-568.88,0.00022465,2]
[371572174,1752358267459,-494.63,0.00022465,2]
[371572175,1752358267468,-2095.41,0.00022465,2]
[371572176,1752358267478,-746.48,0.00022465,2]
[371572177,1752358267487,-1084.72,0.00022465,2]
[371572178,1752358267499,-1452.21,0.00022465,2]
[371572179,1752358267508,-4048.32,0.00022465,2]
[371572180,1752358267518,-888.82,0.00022465,2]
[371572181,1752358267528,-538.28,0.00022465,2]
[371572182,1752358267537,-460.0,0.00022465,2]
[371572183,1752358267546,-151.0,0.00022465,7]
[371572184,1752358267556,-1107.74,0.00022465,2]
[371572185,1752358267566,-151.0,0.00022465,7]
[371572186,1752358267575,-467.32,0.00022465,2]
[371572187,1752358267585,-577.85,0.00022465,2]
[371572188,1752358267595,-151.0,0.00022465,7]
[371572189,1752358267604,-151.0,0.00022465,7]
[371572190,1752358267614,-757.63,0.00022465,2]
[371572191,1752358267624,-188.39,0.00022465,2]
[371572192,1752358267634,-495.29,0.00022465,2]
[371572193,1752358267644,-595.14,0.00022465,2]
[371572194,1752358267655,-702.1,0.00022465,2]
[371572195,1752358267665,-804.39,0.00022465,2]
[371572196,1752358267676,-151.0,0.00022465,7]
[371572197,1752358267686,-772.88,0.00022465,2]
[371572198,1752358267698,-300.0,0.00022466,2]
[371572199,1752358267707,-151.0,0.00022486,7]
[371572200,1752358267716,-151.0,0.00022486,7]
[371572201,1752358267725,-151.0,0.00022486,7]
[371572202,1752358267734,-151.0,0.00022486,7]
[371572203,1752358267743,-151.0,0.00022486,7]
[371572204,1752358267752,-151.0,0.00022486,7]
[371572205,1752358267761,-151.0,0.00022486,7]
[371572206,1752358267770,-215.82688,0.00022486,7]
[371572207,1752358267779,-151.0,0.00022486,7]
[371572208,1752358267789,-151.0,0.00022486,7]
[371572209,1752358267799,-1803.03891771,0.00022486,7]
[371572210,1752358267808,-3000.0,0.000225,2]
[371572211,1752358267817,-167.758624,0.00022505,2]
[371572212,1752358267826,-3000.0,0.0002251,2]
[371572213,1752358267835,-151.0,0.0002251,7]
[371572214,1752358267844,-151.0,0.0002251,7]
[371572215,1752358267853,-151.0,0.0002251,7]
[371572216,1752358267862,-3000.0,0.0002252,2]
[371572217,1752358267871,-3000.0,0.0002253,2]
[371572218,1752358267880,-3000.0,0.0002254,2]
[371572219,1752358267891,-550.27168686,0.00022545,2]
[371572220,1752358267900,-3000.0,0.0002255,2]
[371572221,1752358267908,-3000.0,0.0002256,2]
[371572222,1752358267918,-223.0315306,0.00022564,2]
[371572223,1752358267927,-3000.0,0.0002257,2]
[371572224,1752358267936,-3000.0,0.0002258,2]
[371572225,1752358267945,-3000.0,0.0002259,2]
[371572226,1752358267954,-1026.35875128,0.0002259,2]
[371572227,1752358267963,-9808.33,0.00022593,10]
[371572228,1752358267972,-8173.61,0.00022593,10]
[371572229,1752358267982,-6811.34,0.00022593,10]
[371572230,1752358267991,-5676.12,0.00022593,10]
[371572231,1752358268000,-3000.0,0.000226,2]
[371572232,1752358268009,-151.0,0.000226,8]
[371572233,1752358268019,-214.25614385,0.000226,10]
[371572234,1752358268028,-452.808962,0.00022603,2]
[371572235,1752358268037,-3000.0,0.0002261,2]
[371572236,1752358268046,-3000.0,0.0002262,2]
[371572237,1752358268055,-3000.0,0.0002263,2]
[371572238,1752358268064,-199.668231,0.00022634,7]
[371572239,1752358268072,-3000.0,0.0002264,2]
[371572240,1752358268081,-3000.0,0.0002265,2]
[371572241,1752358268091,-3000.0,0.0002266,2]
[371572242,1752358268099,-3000.0,0.0002267,2]
[371572243,1752358268109,-3000.0,0.0002268,2]
[371572244,1752358268118,-3000.0,0.0002269,2]
[371572245,1752358268127,-3000.0,0.000227,2]
[371572246,1752358268140,-3000.0,0.0002271,2]
[371572247,1752358268149,-3000.0,0.0002272,2]
[371572248,1752358268158,-3000.0,0.0002273,2]
[371572249,1752358268167,-517.5,0.00022738,2]
[371572250,1752358268175,-151.0,0.00022738,7]
[371572251,1752358268185,-223.958614,0.00022738,7]
[371572252,1752358268194,-151.0,0.00022738,7]
[371572253,1752358268203,-640.66,0.00022738,2]
[371572254,1752358268212,-642.54,0.00022738,2]
[371572255,1752358268221,-691.7,0.00022738,2]
[371572256,1752358268230,-706.14,0.00022738,2]
[371572257,1752358268239,-864.17,0.00022738,2]
[371572258,1752358268248,-489.15,0.00022738,2]
[371572259,1752358268257,-505.96,0.00022739,2]
[371572260,1752358268267,-479.52,0.00022739,2]
[371572261,1752358268276,-761.75,0.00022739,2]
[371572262,1752358268285,-841.89,0.00022739,2]
[371572263,1752358268294,-781.03,0.00022739,2]
[371572264,1752358268303,-766.29,0.00022739,2]
[371572265,1752358268312,-489.47,0.00022739,2]
[371572266,1752358268321,-785.47,0.00022739,2]
[371572267,1752358268330,-569.11,0.00022739,2]
[371572268,1752358268339,-494.76,0.00022739,2]
[371572269,1752358268348,-2095.45,0.00022739,2]
[371572270,1752358268357,-746.59,0.00022739,2]
[371572271,1752358268366,-1084.94,0.00022739,2]
[371572272,1752358268376,-1452.21272472,0.00022739,2]
[371572273,1752358268386,-4048.34,0.00022739,2]
[371572274,1752358268395,-888.95,0.00022739,2]
[371572275,1752358268405,-538.44,0.00022739,2]
[371572276,1752358268415,-213.28,0.00022739,2]
[371572277,1752358268424,-1107.97,0.00022739,2]
[371572278,1752358268433,-467.39,0.00022739,2]
[371572279,1752358268443,-577.85,0.00022739,2]
[371572280,1752358268452,-757.82,0.00022739,2]
[371572281,1752358268462,-495.42,0.00022739,2]
[371572282,1752358268471,-595.15,0.00022739,2]
[371572283,1752358268480,-702.27,0.00022739,2]
[371572284,1752358268490,-804.6,0.00022739,2]
[371572285,1752358268500,-773.02142682,0.00022739,2]
[371572286,1752358268509,-3000.0,0.0002274,2]
[371572287,1752358268518,-3000.0,0.0002275,2]
[371572288,1752358268528,-3000.0,0.0002276,2]
[371572289,1752358268537,-3000.0,0.0002277,2]
[371572290,1752358268546,-3000.0,0.0002278,2]
[371572291,1752358268556,-3000.0,0.0002279,2]
[371572292,1752358268565,-1803.03891771,0.00022797,7]
[371572293,1752358268575,-3000.0,0.000228,2]
[371572294,1752358268584,-151.0,0.000228,7]
[371572295,1752358268593,-3000.0,0.0002281,2]
[371572296,1752358268602,-3000.0,0.0002282,2]
[371572297,1752358268612,-2200.0,0.00022824,2]
[371572298,1752358268621,-3000.0,0.0002283,2]
[371572299,1752358268631,-3000.0,0.0002284,2]
[371572300,1752358268640,-3000.0,0.0002285,2]
[371572301,1752358268650,-3000.0,0.0002286,2]
[371572302,1752358268660,-3000.0,0.0002287,2]
[371572303,1752358268670,-3000.0,0.0002288,2]
[371572304,1752358268680,-3000.0,0.0002289,2]
[371572305,1752358268691,-151.0,0.0002289,7]
[371572306,1752358268702,-396.455513,0.0002289,7]
[371572307,1752358268711,-396.455513,0.0002289,7]
[371572308,1752358268723,-151.0,0.0002289,7]
[371572309,1752358268733,-151.0,0.0002289,7]
[371572310,1752358268744,-1938.1,0.000229,2]
[371572311,1752358268754,-3000.0,0.000229,2]
[371572312,1752358268766,-214.25614385,0.000229,7]
[371572313,1752358268777,-550.27168686,0.00022908,2]
[371572314,1752358268786,-3000.0,0.0002291,2]
[371572315,1752358268795,-3000.0,0.0002292,2]
[371572316,1752358268806,-500.0,0.00022924,8]
[371572317,1752358268816,-3000.0,0.0002293,2]
[371572318,1752358268826,-3006.931871,0.0002294,2]
[371572319,1752358268836,-160.0,0.00023,3]
[371572320,1752358268846,-517.5,0.00023012,2]
[371572321,1752358268855,-640.88,0.00023012,2]
[371572322,1752358268866,-642.57777962,0.00023012,2]
[371572323,1752358268875,-691.86,0.00023012,2]
[371572324,1752358268885,-706.15,0.00023012,2]
[371572325,1752358268898,-864.19,0.00023012,2]
[371572326,1752358268908,-489.17,0.00023012,2]
[371572327,1752358268918,-450.0,0.00023014,2]
[371572328,1752358268929,-2000.0,0.000231,2]
[371572329,1752358268937,-1803.03891771,0.00023107,8]
[371572330,1752358268946,-550.27168686,0.00023272,2]
[371572331,1752358268956,-259.67,0.00023379,2]
[371572332,1752358268965,-151.0,0.000234,10]
[371572333,1752358268975,-2464.43,0.000234,7]
[371572334,1752358268984,-1803.03891771,0.00023417,9]
[371572335,1752358268994,-492.9,0.000235,7]
[371572336,1752358269003,-21077.14,0.000235,2]
[371572337,1752358269012,-151.0,0.000235,7]
[371572338,1752358269022,-151.0,0.000235,7]
[371572339,1752358269032,-151.0,0.000235,7]
[371572340,1752358269041,-151.0,0.000235,7]
[371572341,1752358269051,-667.579981,0.000235,7]
[371572342,1752358269060,-667.579981,0.000235,7]
[371572343,1752358269070,-316.72775136,0.00023562,2]
[371572344,1752358269079,-2154.0,0.00023604,2]
[371572345,1752358269089,-550.27168686,0.00023636,2]
[371572346,1752358269098,-1803.03891771,0.00023728,9]
[371572347,1752358269108,-1026.35875128,0.00023841,2]
[371572348,1752358269117,-1868.12860716,0.00023914,2]
[371572349,1752358269127,-231.28369723,0.00023933,2]
[371572350,1752358269136,-550.27168686,0.00024,2]
[371572351,1752358269146,-160.0,0.00024,7]
[371572352,1752358269155,-215.38668925,0.00024,7]
[371572353,1752358269165,-1803.03891771,0.00024038,10]
[371572354,1752358269175,-151.0,0.000241,6]
[371572355,1752358269191,-2000.0,0.000241,2]
[371572356,1752358269208,-1868.12860716,0.00024114,2]
[371572357,1752358269218,-428.8776545,0.00024164,2]
[371572358,1752358269227,-428.8776545,0.00024164,2]
[371572359,1752358269237,-428.4876722,0.00024164,2]
[371572360,1752358269247,-324.0151455,0.00024192,2]
[371572361,1752358269257,-1868.12860716,0.00024214,2]
[371572362,1752358269267,-153.0,0.00024274,2]
[371572363,1752358269276,-153.0,0.00024274,2]
[371572364,1752358269286,-153.0,0.00024274,2]
[371572365,1752358269296,-153.0,0.00024274,2]
[371572366,1752358269306,-153.0,0.00024274,2]
[371572367,1752358269316,-153.0,0.00024274,2]
[371572368,1752358269326,-153.0,0.00024274,2]
[371572369,1752358269335,-153.0,0.00024274,2]
[371572370,1752358269345,-153.0,0.00024274,2]
[371572371,1752358269354,-153.0,0.00024274,2]
[371572372,1752358269364,-153.0,0.00024274,2]
[371572373,1752358269373,-153.0,0.00024274,2]
[371572374,1752358269382,-153.0,0.00024274,2]
[371572375,1752358269392,-153.0,0.00024274,2]
[371572376,1752358269402,-153.0,0.00024274,2]
[371572377,1752358269411,-153.0,0.00024274,2]
[371572378,1752358269421,-153.0,0.00024274,2]
[371572379,1752358269430,-153.0,0.00024274,2]
[371572380,1752358269440,-153.0,0.00024274,2]
[371572381,1752358269450,-153.0,0.00024329,2]
[371572382,1752358269459,-159.6218677,0.00024329,2]
[371572383,1752358269469,-177.9046599,0.00024329,2]
[371572384,1752358269480,-153.0,0.00024329,2]
[371572385,1752358269501,-159.6218677,0.00024329,2]
[371572386,1752358269511,-177.9046599,0.00024329,2]
[371572387,1752358269520,-159.6218677,0.00024329,2]
[371572388,1752358269529,-153.0,0.00024329,2]
[371572389,1752358269539,-177.9046599,0.00024329,2]
[371572390,1752358269548,-159.6218677,0.00024329,2]
[371572391,1752358269558,-177.9046599,0.00024329,2]
[371572392,1752358269568,-159.3838207,0.00024329,2]
[371572393,1752358269578,-177.6537014,0.00024329,2]
[371572394,1752358269588,-153.0,0.00024329,2]
[371572395,1752358269597,-153.0,0.00024329,2]
[371572396,1752358269607,-153.0,0.00024329,2]
[371572397,1752358269618,-306.0,0.00024329,2]
[371572398,1752358269627,-1803.03891771,0.00024348,11]
[371572399,1752358269636,-550.27168686,0.00024363,2]
[371572400,1752358269645,-346.23,0.00024396,2]
[371572401,1752358269655,-393.759612,0.00024401,4]
[371572402,1752358269665,-152.75,0.000245,31]
[371572403,1752358269675,-152.75,0.000245,31]
[371572404,1752358269684,-152.75,0.000245,31]
[371572405,1752358269694,-152.75,0.000245,31]
[371572406,1752358269703,-152.75,0.000245,31]
[371572407,1752358269713,-152.75,0.000245,31]
[371572408,1752358269723,-152.75,0.000245,31]
[371572409,1752358269733,-152.75,0.000245,31]
[371572410,1752358269742,-152.75,0.000245,31]
[371572411,1752358269751,-152.75,0.000245,31]
[371572412,1752358269761,-152.75,0.000245,31]
[371572413,1752358269771,-152.75,0.000245,31]
[371572414,1752358269780,-152.75,0.000245,31]
[371572415,1752358269789,-152.75,0.000245,31]
[371572416,1752358269798,-2000.0,0.000246,2]
[371572417,1752358269808,-2000.0,0.000246,2]
[371572418,1752358269817,-2000.0,0.000246,2]
[371572419,1752358269826,-151.0,0.000246,7]
[371572420,1752358269836,-151.0,0.000246,7]
[371572421,1752358269845,-151.0,0.000246,7]
[371572422,1752358269854,-151.0,0.000246,7]
[371572423,1752358269864,-151.0,0.000246,7]
[371572424,1752358269874,-239.769356,0.000246,7]
[371572425,1752358269883,-151.0,0.000246,7]
[371572426,1752358269894,-151.0,0.000246,7]
[371572427,1752358269903,-151.0,0.000246,7]
[371572428,1752358269912,-153.0,0.0002463,2]
[371572429,1752358269922,-151.0,0.0002465,7]
[371572430,1752358269931,-151.0,0.0002465,7]
[371572431,1752358269943,-151.0,0.0002465,7]
[371572432,1752358269952,-380.0,0.00024658,2]
[371572433,1752358269963,-200.0,0.00024658,15]
[371572434,1752358269975,-1803.03891771,0.00024659,11]
[371572435,1752358269984,-1777.760931,0.0002472,5]
[371572436,1752358269994,-550.27168686,0.00024727,2]
[371572437,1752358270003,-1000.0,0.0002474,5]
[371572438,1752358270012,-1000.0,0.0002476,5]
[371572439,1752358270021,-1000.0,0.0002478,5]
[371572440,1752358270031,-151.0,0.000248,7]
[371572441,1752358270040,-2464.43,0.000248,7]
[371572442,1752358270048,-151.0,0.000248,7]
[371572443,1752358270057,-151.0,0.000248,3]
[371572444,1752358270067,-151.0,0.000248,3]
[371572445,1752358270076,-1000.0,0.000248,5]
[371572446,1752358270190,-151.0,0.000248,7]
[371572447,1752358270215,-151.0,0.000248,7]
[371572448,1752358270225,-151.0,0.000248,7]
[371572449,1752358270235,-151.0,0.000248,7]
[371572450,1752358270244,-151.0,0.000248,7]
[371572451,1752358270253,-151.0,0.000248,7]
[371572452,1752358270263,-288525.18448375,0.000248,2]
[371572453,1752358270353,-117987.91842825,0.000248,2]
[371572454,1752358270363,-151.0,0.000248,7]
[371572455,1752358270372,-151.0,0.000248,7]
[371572456,1752358270382,-151.0,0.000248,7]
[371572457,1752358270392,-151.0,0.000248,7]
[371572458,1752358270401,-500.0,0.00024877,2]
[371572459,1752358270411,-150.83561264,0.00024877,2]
[371572460,1752358270508,-460.0,0.00016438,2]
[371572461,1752358270518,-263.34272472,0.00016438,2]
[371572462,1752358270530,-560.79292837,0.00016438,2]
[371572463,1752358270540,-460.0,0.00016986,2]
[371572464,1752358270550,-460.0,0.0001726,2]
[371572465,1752358270559,-460.0,0.00017534,2]
[371572466,1752358270569,-460.0,0.00017808,2]
[371572467,1752358270579,-460.0,0.00018082,2]
[371572468,1752358270588,-0.16438736,0.00024877,2]
[371572469,1752358270598,-151.0,0.00024877,2]
[371572470,1752358270608,-466.0,0.00024877,2]
[371572471,1752358270618,-798.60641849,0.000249,2]
[371572472,1752358270627,-151.0,0.000249,7]
[371572473,1752358270637,-151.0,0.000249,7]
[371572474,1752358270647,-151.0,0.000249,7]
[371572475,1752358270657,-151.0,0.000249,7]
[371572476,1752358270666,-151.0,0.000249,7]
[371572477,1752358270676,-151.0,0.000249,7]
[371572478,1752358270686,-151.0,0.000249,7]
[371572479,1752358270696,-492.9,0.000249,7]
[371572480,1752358270705,-151.0,0.000249,3]
[371572481,1752358270715,-151.0,0.000249,3]
[371572482,1752358270724,-151.0,0.000249,7]
[371572483,1752358270734,-151.0,0.000249,7]
[371572484,1752358270744,-166.0,0.000249,3]
[371572485,1752358270754,-166.0,0.000249,3]
[371572486,1752358270764,-166.0,0.000249,3]
[371572487,1752358270774,-166.0,0.000249,3]
[371572488,1752358270784,-166.0,0.000249,3]
[371572489,1752358270794,-166.0,0.000249,3]
[371572490,1752358270804,-1750.0,0.000249,3]
[371572491,1752358270814,-166.0,0.000249,3]
[371572492,1752358270823,-1750.0,0.000249,3]
[371572493,1752358270833,-166.0,0.000249,3]
[371572494,1752358270842,-172.0,0.000249,3]
[371572495,1752358270851,-1750.0,0.000249,3]
[371572496,1752358270860,-1750.0,0.000249,3]
[371572497,1752358270870,-1750.0,0.000249,3]
[371572498,1752358270880,-1750.0,0.000249,3]
[371572499,1752358270891,-1750.0,0.000249,3]
[371572500,1752358270901,-1750.0,0.000249,3]
[371572501,1752358270911,-1750.0,0.000249,3]
[371572502,1752358270919,-676.41482819,0.000249,3]
[371572505,1752358726186,24900.0,0.00015583,2]
[371572511,1752358873522,162.477304,0.00013699,2]
[371572619,1752359432740,-256.58968782,0.00016337,2]
[371572620,1752359432750,-738.96188247,0.00016338,2]
[371572621,1752359432760,-803.8234695,0.00016338,2]
[371572622,1752359432770,-547.03,0.00016428,3]
[371572623,1752359432780,-640.96,0.00016428,3]
[371572624,1752359432789,-1200.0,0.00016436,2]
[371572626,1752359432799,-300.0,0.00016436,2]
[371572627,1752359432808,-300.0,0.00016436,2]
[371572628,1752359432818,-1200.0,0.00016436,2]
[371572629,1752359432828,-48826.64770578,0.00016437,2]
[371572630,1752359432840,-1173.35229422,0.00016437,2]
[371572631,1752359432849,-155.0,0.00016437,2]
[371572632,1752359432859,-500.0,0.00016437,2]
[371572634,1752359432868,-648.07982319,0.00016437,2]
[371572635,1752359432878,-500.0,0.00016437,2]
[371572636,1752359432887,-500.0,0.00016437,2]
[371572637,1752359432898,-500.0,0.00016437,2]
[371572638,1752359432907,-500.0,0.00016437,2]
[371572639,1752359432917,-397.28794352,0.00016437,2]
[371572640,1752359432927,-500.0,0.00016437,2]
[371572641,1752359432936,-500.0,0.00016437,2]
[371572642,1752359432946,-500.0,0.00016437,2]
[371572643,1752359432955,-500.0,0.00016437,2]
[371572644,1752359432964,-500.0,0.00016437,2]
[371572645,1752359432973,-500.0,0.00016437,2]
[371572646,1752359432983,-500.0,0.00016437,2]
[371572647,1752359432992,-500.0,0.00016437,2]
[371572648,1752359433002,-499.86898579,0.00016437,2]
[371572649,1752359433011,-500.0,0.00016437,2]
[371572650,1752359433021,-500.0,0.00016437,2]
[371572651,1752359433031,-500.0,0.00016437,2]
[371572652,1752359433040,-216.68665143,0.00016437,2]
[371572709,1752359438718,-283.31334857,0.00016437,2]
[371572711,1752359438728,-110.89938685,0.00016437,2]
[371572713,1752359438740,-389.10061315,0.00016437,2]
[371572715,1752359438750,-480.36352057,0.00016437,2]
[371572717,1752359438759,-444.65761446,0.00016437,2]
[371572719,1752359438769,-500.0,0.00016437,2]
[371572721,1752359438778,-633.43,0.00016437,2]
[371572723,1752359438787,-500.0,0.00016437,2]
[371572725,1752359438797,-369.93203279,0.00016437,2]
[371572727,1752359438806,-301.25211249,0.00016437,2]
[371572729,1752359438821,-198.74788751,0.00016437,2]
[371572731,1752359438831,-500.0,0.00016437,2]
[371572733,1752359438840,-500.0,0.00016437,2]
[371572735,1752359438849,-500.0,0.00016437,2]
[371572738,1752359438859,-500.0,0.00016437,2]
[371572740,1752359438868,-500.0,0.00016437,2]
[371572741,1752359438879,-315.0487572,0.00016437,2]
[371572743,1752359438888,-500.0,0.00016437,2]
[371572745,1752359438897,-500.0,0.00016437,2]
[371572746,1752359438907,-500.0,0.00016437,2]
[371572748,1752359438916,-500.0,0.00016437,2]
[371572749,1752359438925,-500.0,0.00016437,2]
[371572750,1752359438934,-500.0,0.00016437,2]
[371572751,1752359438943,-233.31301253,0.00016437,2]
[371572752,1752359438952,-460.0,0.00016438,2]
[371572753,1752359438961,-460.0,0.00016438,2]
[371572754,1752359438970,-460.0,0.00016438,2]
[371572755,1752359438979,-460.0,0.00016438,2]
[371572756,1752359438988,-460.0,0.00016438,2]
[371572757,1752359438996,-1000.0,0.00016438,2]
[371572758,1752359439005,-464.72862013,0.00016438,2]
[371572759,1752359439014,-460.0,0.00016438,2]
[371572760,1752359439023,-460.0,0.00016438,2]
[371572761,1752359439032,-574.45117471,0.00016438,2]
[371572762,1752359439041,-460.0,0.00016438,2]
[371572763,1752359439050,-460.0,0.00016438,2]
[371572764,1752359439059,-150.31243873,0.00016438,2]
[371572765,1752359439091,-309.68756127,0.00016438,2]
[371572766,1752359439101,-460.0,0.00016438,2]
[371572767,1752359439110,-460.0,0.00016438,2]
[371572768,1752359439119,-460.0,0.00016438,2]
[371572769,1752359439128,-460.0,0.00016438,2]
[371572770,1752359439137,-460.0,0.00016438,2]
[371572771,1752359439146,-460.0,0.00016438,2]
[371572772,1752359439154,-455.48880775,0.00016438,2]
[371572773,1752359439163,-460.0,0.00016438,2]
[371572774,1752359439172,-460.0,0.00016438,2]
[371572775,1752359439181,-460.0,0.00016438,2]
[371572776,1752359439190,-460.0,0.00016438,2]
[371572777,1752359439199,-460.0,0.00016438,2]
[371572778,1752359439207,-460.0,0.00016438,2]
[371572779,1752359439216,-460.0,0.00016438,2]
[371572780,1752359439226,-460.0,0.00016438,2]
[371572781,1752359439235,-460.0,0.00016438,2]
[371572782,1752359439245,-460.0,0.00016438,2]
[371572783,1752359439254,-460.0,0.00016438,2]
[371572784,1752359439264,-460.0,0.00016438,2]
[371572785,1752359439276,-460.0,0.00016438,2]
[371572786,1752359439285,-460.49227842,0.00016438,2]
[371572787,1752359439295,-460.0,0.00016438,2]
[371572788,1752359439304,-460.0,0.00016438,2]
[371572789,1752359439313,-460.0,0.00016438,2]
[371572790,1752359439322,-460.0,0.00016438,2]
[371572791,1752359439331,-460.0,0.00016438,2]
[371572792,1752359439341,-166.9522666,0.00016438,2]
[371572793,1752359439350,-408.21915989,0.00016438,2]
[371572794,1752359439359,-460.0,0.00016438,2]
[371572795,1752359439369,-586.40292969,0.00016438,2]
[371572796,1752359439378,-460.0,0.00016438,2]
[371572797,1752359439388,-197.12501723,0.00016438,2]
[371572798,1752359439398,-460.0,0.00016438,2]
[371572799,1752359439407,-467.57228454,0.00016438,2]
[371572800,1752359439418,-460.0,0.00016438,2]
[371572801,1752359439430,-460.0,0.00016438,2]
[371572802,1752359439439,-460.0,0.00016438,2]
[371572803,1752359439449,-460.0,0.00016438,2]
[371572804,1752359439459,-460.0,0.00016438,2]
[371572805,1752359439469,-460.0,0.00016438,2]
[371572806,1752359439478,-460.0,0.00016438,2]
[371572807,1752359439488,-460.0,0.00016438,2]
[371572808,1752359439498,-460.0,0.00016438,2]
[371572809,1752359439508,-460.0,0.00016438,2]
[371572810,1752359439519,-460.0,0.00016438,2]
[371572811,1752359439529,-460.0,0.00016438,2]
[371572812,1752359439539,-460.0,0.00016438,2]
[371572813,1752359439548,-460.0,0.00016438,2]
[371572814,1752359439558,-460.0,0.00016438,2]
[371572815,1752359439567,-460.0,0.00016438,2]
[371572816,1752359439576,-460.0,0.00016438,2]
[371572817,1752359439586,-460.0,0.00016438,2]
[371572818,1752359439607,-460.0,0.00016438,2]
[371572819,1752359439616,-460.0,0.00016438,2]
[371572820,1752359439627,-460.0,0.00016438,2]
[371572821,1752359439636,-587.4,0.00016438,2]
[371572822,1752359439646,-460.0,0.00016438,2]
[371572823,1752359439656,-460.0,0.00016438,2]
[371572824,1752359439666,-460.0,0.00016438,2]